bitfinex/quotes_ETHUSD_20240612
["timestamp","ask_amount","ask_price","bid_price","bid_amount"]
[1718157626007,2.2731414,3481.7,3480.6,0.70223]
[1718157626406,2.2731414,3481.7,3480.7,0.06081745]
[1718157626604,2.2731414,3481.7,3480.7,0.61081745]
[1718157627091,2.87228,3481.6,3480.7,0.61081745]
[1718157628027,2.87258,3481.2,3480.7,0.06081745]
[1718157628330,3.362038,3481.2,3480.5,1.14909]
[1718157628489,3.362038,3481.2,3480.8,0.06079551]
[1718157628692,3.362038,3481.2,3480.5,1.14909]
[1718157628892,3.362038,3481.2,3480.9,0.06077358]
[1718157629095,3.362038,3481.2,3480.5,1.14909]
[1718157629392,3.362038,3481.2,3480.6,0.06083939]
[1718157630512,2.87258,3481.2,3480.6,0.06083939]
[1718157630711,2.87258,3481.2,3480.7,0.60745583]
[1718157631022,2.87258,3481.2,3480.8,0.06150472]
[1718157631223,2.87258,3481.2,3480.7,0.60745583]
[1718157631415,2.87258,3481.2,3480.8,0.06150472]
[1718157631613,2.87258,3481.2,3480.7,0.60745583]
[1718157632019,2.87258,3481.2,3480.8,0.06147492]
[1718157632218,2.87258,3481.2,3480.7,0.55]
[1718157632535,2.87258,3481.2,3480.8,0.06147492]
[1718157632967,2.87258,3481.2,3480.6,0.55]
[1718157633131,2.87258,3481.2,3480.9,0.06145298]
[1718157633461,2.87258,3481.2,3481.0,0.06143105]
[1718157633869,2.87258,3481.2,3480.6,0.55]
[1718157634067,2.87258,3481.2,3481.1,0.06140911]
[1718157634248,3.362038,3481.2,3480.6,0.55]
[1718157634571,2.87258,3481.2,3481.1,0.06140911]
[1718157634760,2.87284,3480.9,3480.5,1.14909]
[1718157634965,2.87284,3480.9,3480.2,3.0]
[1718157635149,2.87284,3480.9,3480.3,1.69909]
[1718157635738,2.87284,3480.9,3480.4,0.06156267]
[1718157635938,2.87284,3480.9,3480.5,0.55]
[1718157636133,2.87309,3480.6,3480.3,1.14909]
[1718157636334,2.87309,3480.6,3479.4,2.874]
[1718157636547,2.87309,3480.6,3479.9,1.149249]
[1718157636944,2.87309,3480.6,3480.2,0.05746176]
[1718157637475,2.87309,3480.6,3480.3,0.55]
[1718157637640,2.87309,3480.6,3480.2,0.55]
[1718157638437,2.87309,3480.6,3479.9,1.149249]
[1718157638658,2.022,3480.4,3479.9,1.149249]
[1718157639075,2.022,3480.4,3480.0,0.55]
[1718157639555,2.022,3480.4,3479.8,1.1493]
[1718157639764,2.022,3480.4,3479.9,0.55]
[1718157641080,2.87333,3480.3,3479.6,3.0]
[1718157642043,2.87383,3479.7,3478.9,7.252]
[1718157642333,2.87383,3479.7,3479.0,0.0574803]
[1718157642869,2.87383,3479.7,3478.9,1.149605]
[1718157643676,2.87383,3479.7,3479.0,0.55]
[1718157648219,4.707083,3479.6,3479.0,0.55]
[1718157649290,4.4197,3479.6,3479.0,0.55]
[1718157650831,2.022,3479.2,3479.1,0.05930134]
[1718157651193,2.022,3479.2,3478.5,1.149737]
[1718157651395,2.022,3479.2,3479.1,0.0592813]
[1718157651605,2.022,3479.2,3478.5,1.149737]
[1718157651606,2.511597,3479.2,3478.5,1.149737]
[1718157651946,5.385867,3479.2,3479.1,0.05987783]
[1718157652243,5.17073,3478.9,3478.1,2.87509]
[1718157652540,2.022,3478.8,3478.2,1.149841]
[1718157653662,2.022,3478.8,3478.3,0.55]
[1718157654760,2.022,3478.8,3478.2,3.0]
[1718157654989,2.022,3478.8,3477.9,3.0]
[1718157655125,2.87463,3478.7,3478.0,1.699875]
[1718157655536,2.87492,3478.4,3477.9,3.0]
[1718157655736,4.89692,3478.4,3477.9,3.0]
[1718157656878,4.89692,3478.4,3477.8,1.149971]
[1718157657669,4.89692,3478.4,3477.5,5.87558]
[1718157657881,4.89692,3478.4,3477.6,0.55]
[1718157658161,4.89692,3478.4,3477.6,1.700002]
[1718157660284,2.022,3478.4,3477.7,2.93295196]
[1718157660457,4.8966,3478.8,3477.9,2.87525]
[1718157660659,4.8966,3478.8,3478.0,0.60749603]
[1718157661353,2.87426,3479.2,3478.1,2.87511]
[1718157661567,2.87426,3479.2,3478.3,2.87493]
[1718157661790,2.87426,3479.2,3478.4,0.6074901]
[1718157662845,2.4803,3479.4,3478.5,2.87479]
[1718157663072,4.89594,3479.6,3478.7,2.87455]
[1718157663266,2.3431,3479.8,3478.9,2.87444]
[1718157663576,2.3431,3479.8,3479.0,0.60748008]
[1718157663992,2.022,3479.9,3479.1,2.87426]
[1718157665803,2.022,3479.9,3479.2,0.05668335]
[1718157670376,2.87362,3480.0,3479.2,0.05668335]
[1718157672409,2.022,3479.9,3479.2,0.05668335]
[1718157674794,2.434,3480.2,3479.3,2.87412]
[1718157675006,4.456,3480.2,3479.4,0.05585155]
[1718157675388,2.434,3480.2,3479.4,0.05585155]
[1718157675616,4.456,3480.2,3479.4,0.05585155]
[1718157675983,5.188928,3480.2,3479.4,0.05585155]
[1718157676359,2.87348,3480.1,3479.4,0.05585155]
[1718157676547,4.89574,3479.8,3479.4,0.05585155]
[1718157676818,2.3577,3479.7,3478.9,2.87442]
[1718157677021,2.022,3479.5,3479.0,3.0]
[1718157677613,2.022,3479.1,3478.2,0.3482606]
[1718157677786,2.022,3479.1,3478.3,2.87491]
[1718157678002,2.87423,3479.2,3478.3,2.87491]
[1718157679146,2.87423,3479.2,3478.4,3.0]
[1718157679317,2.022,3479.3,3478.5,2.93226213]
[1718157680813,2.022,3479.3,3478.6,0.05605705]
[1718157681326,4.3679,3478.8,3478.1,7.252]
[1718157681649,7.24245,3478.8,3478.1,7.252]
[1718157681854,7.24245,3478.8,3478.2,0.05261052]
[1718157682015,7.8495789,3478.8,3478.2,0.05261052]
[1718157683112,7.8495789,3478.8,3478.2,3.05261052]
[1718157683355,7.24245,3478.8,3478.2,3.05261052]
[1718157683522,7.24245,3478.8,3478.2,0.05261052]
[1718157683850,2.87496,3478.3,3478.2,0.05261052]
[1718157684012,2.87496,3478.3,3477.4,7.252]
[1718157684209,2.022,3477.9,3477.3,1.150098]
[1718157684555,2.022,3477.9,3477.4,0.05751162]
[1718157684705,4.89696,3478.3,3477.4,0.05751162]
[1718157685406,4.89696,3478.3,3477.5,0.55]
[1718157685920,4.89696,3478.3,3477.4,0.55]
[1718157686134,4.89696,3478.3,3477.5,0.05750438]
[1718157686323,4.89696,3478.3,3477.6,1.13959339]
[1718157689619,4.89696,3478.3,3477.6,0.55]
[1718157689813,4.89696,3478.3,3477.5,0.55]
[1718157690513,2.87476,3478.6,3477.6,5.2271]
[1718157690721,2.87476,3478.6,3477.7,0.55]
[1718157690943,2.87476,3478.6,3477.7,1.48271]
[1718157691158,2.87476,3478.6,3477.8,0.05749836]
[1718157691330,2.87476,3478.6,3477.9,0.55]
[1718157691814,2.87476,3478.6,3477.7,3.93271]
[1718157691815,2.87476,3478.6,3477.8,0.55]
[1718157694916,2.87476,3478.6,3477.9,0.05749711]
[1718157695121,2.022,3479.0,3477.9,0.05749711]
[1718157695122,4.89642,3479.0,3478.0,1.00402071]
[1718157695319,4.89642,3479.0,3478.1,0.05749461]
[1718157695558,4.89642,3479.0,3478.2,0.55]
[1718157695855,4.89642,3479.0,3478.3,0.0516681]
[1718157701362,2.87442,3479.0,3478.3,0.0516681]
[1718157702490,2.87442,3479.0,3478.4,0.60749436]
[1718157702690,2.87442,3479.0,3478.4,0.6591405]
[1718157706700,2.87442,3479.0,3478.4,0.60164614]
[1718157706900,2.87442,3479.0,3478.4,0.6591368]
[1718157708904,2.87442,3479.0,3478.4,0.60164614]
[1718157710003,2.87476,3478.6,3478.4,0.05164614]
[1718157710412,2.022,3478.5,3478.4,0.05164614]
[1718157710580,2.875,3478.3,3477.6,7.252]
[1718157710774,2.875,3478.3,3477.4,2.87564]
[1718157711258,2.022,3478.5,3477.3,3.4927]
[1718157711259,2.87517,3478.1,3477.5,0.05153888]
[1718157711465,2.87517,3478.1,3477.2,7.252]
[1718157711666,2.87517,3478.1,3477.6,0.05146]
[1718157711908,2.87517,3478.1,3477.3,3.0]
[1718157712199,2.87517,3478.1,3477.7,0.05175987]
[1718157712393,2.87517,3478.1,3477.3,3.0]
[1718157712589,2.87517,3478.1,3477.8,0.0517379]
[1718157712897,2.87517,3478.1,3477.3,3.0]
[1718157712898,2.87517,3478.1,3477.9,0.051772]
[1718157713103,2.87517,3478.1,3477.3,3.0]
[1718157713397,2.87517,3478.1,3478.0,0.05169396]
[1718157713602,2.87517,3478.1,3477.4,0.60750922]
[1718157714113,2.87517,3478.1,3477.5,0.05186811]
[1718157714614,2.87481,3478.5,3477.7,2.2532]
[1718157714764,2.87481,3478.5,3477.8,0.29125741]
[1718157714972,2.87481,3478.5,3477.8,0.3430993]
[1718157715370,2.3445,3478.8,3477.8,0.40060227]
[1718157715573,2.3445,3478.8,3477.9,0.55]
[1718157715771,2.3445,3478.8,3478.0,0.05749691]
[1718157716011,2.3445,3478.8,3478.1,0.55]
[1718157716172,2.3445,3478.8,3478.0,0.05162026]
[1718157716173,2.87473,3478.6,3478.0,0.05162026]
[1718157716368,2.87473,3478.6,3478.2,0.05157632]
[1718157716614,2.87473,3478.6,3478.1,0.05159829]
[1718157716767,2.87473,3478.6,3478.3,0.05155435]
[1718157716967,2.87473,3478.6,3478.2,0.05157632]
[1718157717181,2.87473,3478.6,3478.4,0.05153239]
[1718157717477,2.87473,3478.6,3478.5,0.05176668]
[1718157717685,2.87509,3478.2,3477.8,3.0]
[1718157720300,2.87476,3478.6,3477.8,3.0]
[1718157721243,2.87476,3478.6,3478.0,2.3709]
[1718157721529,3.4734282,3479.0,3478.1,1.14784027]
[1718157721845,2.87444,3479.0,3478.1,1.14784027]
[1718157722286,3.4734282,3479.0,3478.1,1.14784027]
[1718157722932,3.4734282,3479.0,3478.2,0.05749587]
[1718157723097,2.87444,3479.0,3478.2,0.70263848]
[1718157723785,2.87444,3479.0,3478.1,3.0]
[1718157723786,4.89669,3478.7,3478.1,3.0]
[1718157723986,4.89669,3478.7,3477.8,3.0]
[1718157724186,4.89669,3478.7,3477.8,3.55]
[1718157724383,4.89669,3478.7,3477.9,0.05749948]
[1718157725240,4.89669,3478.7,3477.8,3.55]
[1718157725529,4.89669,3478.7,3477.9,1.66624769]
[1718157725839,4.89669,3478.7,3478.0,0.05190152]
[1718157725993,2.022,3478.3,3478.0,0.05190152]
[1718157726338,2.022,3478.3,3477.7,7.252]
[1718157726339,2.87505,3478.2,3477.7,7.252]
[1718157726495,2.87505,3478.2,3478.1,0.05176352]
[1718157726701,2.87505,3478.2,3477.7,7.252]
[1718157726702,3.4740382,3478.2,3477.7,7.252]
[1718157726908,2.87505,3478.2,3478.1,0.05181935]
[1718157727112,2.87505,3478.2,3477.7,7.252]
[1718157727313,2.87505,3478.2,3478.1,0.05181935]
[1718157727494,3.75790137,3478.2,3477.7,7.252]
[1718157727893,2.87534,3477.9,3477.8,0.05188526]
[1718157728109,2.87534,3477.9,3477.2,1.150135]
[1718157728110,2.87566,3477.5,3477.2,7.252]
[1718157729300,2.022,3477.3,3477.2,7.252]
[1718157729500,2.87603,3477.1,3476.2,0.6021969]
[1718157729730,2.87603,3477.1,3476.1,1.150483]
[1718157729950,2.87624,3476.8,3475.9,3.4790869]
[1718157730205,2.87624,3476.8,3476.0,0.05752922]
[1718157731412,2.87624,3476.8,3476.1,0.55]
[1718157731735,2.87624,3476.8,3476.2,0.76349652]
[1718157731955,2.87624,3476.8,3476.2,0.82102568]
[1718157732144,4.89791,3477.2,3476.3,0.05752734]
[1718157733243,4.89791,3477.2,3476.2,0.76349652]
[1718157733428,4.89821,3476.8,3476.0,3.0]
[1718157733627,2.022,3476.4,3475.5,2.87727]
[1718157733951,2.022,3476.4,3475.6,1.150649]
[1718157735319,4.89821,3476.8,3475.7,0.05753381]
[1718157735513,4.89821,3476.8,3475.8,1.25854528]
[1718157736524,4.89821,3476.8,3475.9,0.05753383]
[1718157736729,2.87621,3476.8,3476.0,2.8732]
[1718157736953,4.89791,3477.2,3476.1,3.05752738]
[1718157737125,2.87555,3477.6,3476.2,4.01974274]
[1718157737311,2.87555,3477.6,3476.5,2.87642]
[1718157737514,2.87555,3477.6,3476.6,0.60751879]
[1718157737786,2.87555,3477.6,3476.6,5.86581879]
[1718157737916,2.87555,3477.6,3476.7,0.87422388]
[1718157738115,2.87555,3477.6,3476.8,0.60751781]
[1718157739057,2.87555,3477.6,3476.8,0.55]
[1718157740219,2.87572,3477.4,3476.7,0.87422388]
[1718157740574,2.87572,3477.4,3476.7,0.93174287]
[1718157740717,2.87572,3477.4,3476.8,1.63184629]
[1718157740917,2.87572,3477.4,3476.8,1.68417018]
[1718157741484,0.44998811,3477.5,3476.8,0.05232389]
[1718157741485,4.89802,3477.1,3476.8,0.05232389]
[1718157741756,4.89802,3477.1,3476.6,3.0]
[1718157741952,4.89802,3477.1,3476.9,0.05199198]
[1718157742153,2.87602,3477.1,3476.6,3.0]
[1718157742358,2.87602,3477.1,3477.0,0.05196999]
[1718157742567,2.87602,3477.1,3476.7,1.0252]
[1718157742721,2.87602,3477.1,3477.0,0.0519632]
[1718157742920,2.87602,3477.1,3476.7,1.0252]
[1718157743267,2.87602,3477.1,3476.8,1.12772]
[1718157743433,5.34764811,3477.5,3476.8,1.17973396]
[1718157747759,0.44998811,3477.5,3476.9,0.05751899]
[1718157747963,0.44998811,3477.5,3477.0,3.42598]
[1718157748260,2.87535,3477.9,3477.0,3.42598]
[1718157748261,2.87535,3477.9,3477.1,4.06920382]
[1718157748459,2.87535,3477.9,3477.2,0.55]
[1718157748628,2.87535,3477.9,3477.2,0.60751042]
[1718157748821,2.87535,3477.9,3477.2,0.6594722]
[1718157749154,2.87535,3477.9,3477.2,0.60196178]
[1718157749372,2.87535,3477.9,3477.2,0.65947224]
[1718157749525,2.87535,3477.9,3477.3,0.75471455]
[1718157749858,2.87535,3477.9,3477.3,0.80561753]
[1718157751349,0.44992334,3478.0,3477.3,0.86312795]
[1718157751666,2.87499,3478.3,3477.4,0.55]
[1718157751824,2.87499,3478.3,3477.4,0.60750768]
[1718157752024,2.87499,3478.3,3477.4,1.92430484]
[1718157753787,2.87499,3478.3,3477.6,2.3717]
[1718157754328,2.87499,3478.3,3477.7,0.04904937]
[1718157755935,2.87499,3478.3,3477.5,2.87558]
[1718157756103,2.87499,3478.3,3477.8,0.04874768]
[1718157756301,2.87499,3478.3,3477.5,2.87558]
[1718157756508,2.87499,3478.3,3477.9,0.0487257]
[1718157756710,3.40967988,3478.3,3477.3,0.75471455]
[1718157757027,3.40967988,3478.3,3478.0,0.04870373]
[1718157757195,2.3259,3478.2,3477.4,0.55]
[1718157757402,2.3259,3478.2,3477.2,3.0]
[1718157757403,4.89721,3478.0,3477.2,3.0]
[1718157757998,4.89721,3478.0,3477.2,4.25936]
[1718157760184,2.3259,3478.2,3477.1,7.252]
[1718157760185,4.89757,3477.6,3477.1,7.252]
[1718157760385,4.89757,3477.6,3476.6,22.2883]
[1718157760840,2.2945,3477.5,3476.6,22.2883]
[1718157761138,2.87571,3477.4,3476.6,22.2883]
[1718157761637,2.87571,3477.4,3476.7,3.55]
[1718157762294,2.87571,3477.4,3476.7,6.36754]
[1718157762625,2.87571,3477.4,3476.7,5.81754]
[1718157762830,2.87571,3477.4,3476.7,3.0]
[1718157765299,2.87599,3477.1,3476.7,3.0]
[1718157769331,5.17016,3477.5,3476.7,3.0]
[1718157770394,2.87566,3477.5,3476.7,3.0]
[1718157770595,2.87566,3477.5,3476.8,1.0252]
[1718157770916,2.87566,3477.5,3476.8,1.07337819]
[1718157771136,2.87534,3477.9,3477.0,2.87601]
[1718157771439,2.87534,3477.9,3477.1,0.6556238]
[1718157771612,2.87534,3477.9,3477.2,0.0575116]
[1718157771962,2.87534,3477.9,3477.3,0.04803852]
[1718157772443,2.87534,3477.9,3477.1,0.55]
[1718157772643,2.87534,3477.9,3477.4,0.04801654]
[1718157772804,2.87534,3477.9,3477.2,0.579061]
[1718157773010,2.87534,3477.9,3477.5,0.04799456]
[1718157773230,2.87534,3477.9,3477.2,0.579061]
[1718157773406,2.87534,3477.9,3477.6,0.04797258]
[1718157773938,2.87534,3477.9,3477.7,0.04795061]
[1718157774112,2.87534,3477.9,3477.2,0.63657262]
[1718157774322,2.87534,3477.9,3477.3,0.45429678]
[1718157777342,2.87534,3477.9,3477.3,0.04803852]
[1718157780909,2.87534,3477.9,3477.4,0.04769534]
[1718157781111,2.87534,3477.9,3477.1,3.55]
[1718157781359,2.87534,3477.9,3477.2,0.0477393]
[1718157786456,2.87559,3477.6,3477.2,0.0477393]
[1718157787016,2.8758,3477.3,3476.8,2.175436]
[1718157788240,2.8758,3477.3,3476.8,1.150236]
[1718157788823,2.87606,3477.0,3476.8,1.150236]
[1718157790070,2.87606,3477.0,3476.2,3.0]
[1718157790571,2.87606,3477.0,3476.3,0.55]
[1718157791545,2.87606,3477.0,3476.1,10.1685969]
[1718157791546,2.87634,3476.7,3476.1,9.5664]
[1718157791752,2.8766,3476.4,3476.0,0.6021969]
[1718157791956,2.8766,3476.4,3475.6,8.75762636]
[1718157791957,2.022,3476.2,3475.6,7.252]
[1718157792259,2.87679,3476.1,3475.4,3.465047]
[1718157792459,2.87679,3476.1,3475.4,3.53665393]
[1718157793462,2.87679,3476.1,3475.5,3.0]
[1718157797426,2.87679,3476.1,3475.3,3.0]
[1718157797624,2.87679,3476.1,3475.3,4.312965]
[1718157800968,2.87679,3476.1,3475.4,2.32355776]
[1718157801549,2.87649,3476.5,3475.6,2.87718]
[1718157801878,2.4033,3476.8,3475.5,0.60754303]
[1718157801879,2.87614,3476.9,3475.9,2.3995]
[1718157802087,2.87614,3476.9,3476.1,2.87676]
[1718157802380,2.87614,3476.9,3476.2,1.38337896]
[1718157802570,2.87614,3476.9,3476.2,1.4297184]
[1718157803546,2.87584,3477.3,3476.2,1.4297184]
[1718157804681,2.87607,3477.0,3476.2,0.59633944]
[1718157805090,2.4033,3477.4,3476.2,0.59633944]
[1718157805383,2.87575,3477.4,3476.4,2.4064]
[1718157805543,2.87575,3477.4,3476.4,5.4064]
[1718157805745,2.87575,3477.4,3476.5,1.22921099]
[1718157806105,2.87575,3477.4,3476.5,4.22921099]
[1718157807714,2.022,3477.6,3476.5,4.22921099]
[1718157807715,2.3207,3477.7,3476.6,2.93387564]
[1718157807847,2.87541,3477.8,3476.7,0.55]
[1718157808205,2.87541,3477.8,3476.7,3.65338766]
[1718157808396,2.87541,3477.8,3476.8,0.77130357]
[1718157808548,2.87541,3477.8,3476.9,5.2534745]
[1718157808759,2.87509,3478.2,3477.1,2.87595]
[1718157809211,2.87509,3478.2,3477.2,0.04518855]
[1718157810979,2.87509,3478.2,3477.2,0.59518855]
[1718157811146,2.87509,3478.2,3477.3,0.34711386]
[1718157811356,2.87509,3478.2,3477.4,0.04463371]
[1718157811586,2.87509,3478.2,3477.4,0.59463371]
[1718157811801,2.87509,3478.2,3477.5,2.3096]
[1718157812182,2.87509,3478.2,3477.6,0.04441363]
[1718157816974,0.44996643,3478.3,3477.6,0.04441363]
[1718157817288,4.89675,3478.6,3477.6,0.65709238]
[1718157821283,4.89675,3478.6,3477.6,0.04441363]
[1718157822712,2.022,3478.2,3477.6,0.04441363]
[1718157823366,2.4763,3478.1,3477.6,0.04441363]
[1718157823681,4.89741,3477.8,3477.0,10.12798]
[1718157823877,4.89741,3477.8,3477.7,0.04370914]
[1718157824080,5.634781,3477.8,3477.0,10.12798]
[1718157824309,4.89741,3477.8,3477.7,0.04370914]
[1718157824473,4.89741,3477.8,3477.0,10.12798]
[1718157824908,4.89741,3477.8,3477.1,0.04384102]
[1718157825104,4.89741,3477.8,3477.1,3.04384102]
[1718157826887,2.87541,3477.8,3477.2,2.4651]
[1718157827202,2.87541,3477.8,3477.3,1.60775639]
[1718157828406,2.8751,3478.2,3477.3,1.60775639]
[1718157832613,2.8751,3478.2,3477.3,4.48352639]
[1718157833522,2.8751,3478.2,3477.4,0.55]
[1718157834015,2.8751,3478.2,3477.5,0.04405593]
[1718157835432,2.87279966,3478.2,3477.5,0.04405593]
[1718157835581,2.87279966,3478.2,3477.3,2.87577]
[1718157835931,2.87279966,3478.2,3477.4,0.04407791]
[1718157837179,2.87279966,3478.2,3477.2,2.4651]
[1718157837518,2.87279966,3478.2,3477.3,0.04409989]
[1718157837720,2.87279966,3478.2,3477.3,1.32021988]
[1718157839618,2.87561,3477.6,3477.3,0.04409989]
[1718157840886,2.87582,3477.3,3476.8,3.527928]
[1718157841309,2.87582,3477.3,3476.9,3.0]
[1718157842333,2.022,3477.6,3476.8,1.150228]
[1718157842836,2.022,3477.6,3476.5,7.252]
[1718157843128,2.405,3477.5,3476.5,7.252]
[1718157843483,2.405,3477.5,3476.6,3.0]
[1718157843883,2.022,3477.6,3476.6,3.0]
[1718157844123,2.022,3477.6,3476.7,1.26599]
[1718157844124,2.87576,3477.4,3476.7,1.26599]
[1718157845825,2.87576,3477.4,3476.8,0.04476814]
[1718157849874,0.5989882,3477.7,3476.9,2.4662]
[1718157850080,0.5989882,3477.7,3476.9,5.4662]
[1718157850217,2.87543,3477.8,3477.0,0.04465881]
[1718157850410,2.87543,3477.8,3477.1,0.55108588]
[1718157850670,2.87543,3477.8,3477.2,0.04461485]
[1718157853610,3.4744182,3477.8,3477.2,0.04461485]
[1718157853911,0.5989882,3477.6,3477.2,0.04461485]
[1718157854416,0.5989882,3477.6,3476.9,0.55]
[1718157854569,0.5989882,3477.7,3477.3,0.04427213]
[1718157854778,3.4744182,3477.8,3477.0,0.769223]
[1718157855160,3.4744182,3477.8,3477.1,0.0443161]
[1718157855362,2.87574,3477.4,3477.1,0.0443161]
[1718157855702,2.87574,3477.4,3476.7,1.26599]
[1718157855860,2.87574,3477.4,3477.2,0.04430599]
[1718157856069,2.87574,3477.4,3476.8,1.380599]
[1718157856358,2.87574,3477.4,3477.3,0.04428401]
[1718157856602,2.87574,3477.4,3476.6,3.0]
[1718157856959,2.87574,3477.4,3476.7,0.04441592]
[1718157857158,2.87574,3477.4,3476.8,1.25844159]
[1718157857716,2.87574,3477.4,3476.9,0.04468677]
[1718157859409,0.5989882,3477.7,3476.9,0.10220732]
[1718157859739,0.5989882,3477.7,3477.0,2.418]
[1718157859898,5.4964382,3477.8,3477.0,2.418]
[1718157860078,5.4964382,3477.8,3477.1,0.47167841]
[1718157860277,2.87555,3477.6,3477.1,0.47167841]
[1718157862306,2.87581,3477.3,3477.1,0.04456557]
[1718157862886,2.87581,3477.3,3476.8,1.25844159]
[1718157863201,2.87581,3477.3,3477.2,0.044502]
[1718157863385,2.87581,3477.3,3476.8,1.25844159]
[1718157863585,2.87581,3477.3,3477.2,0.044502]
[1718157863830,2.87606,3477.0,3476.3,2.3371]
[1718157875254,2.87606,3477.0,3476.1,7.252]
[1718157875460,2.87629,3476.7,3476.1,7.252]
[1718157875623,2.87629,3476.7,3476.1,8.500557]
[1718157875947,2.87629,3476.7,3476.2,0.04522089]
[1718157879941,2.87603,3477.1,3476.3,2.3845]
[1718157880147,0.5989882,3477.2,3476.7,2.87628]
[1718157880329,0.89817549,3477.4,3476.7,2.87628]
[1718157880330,0.5989882,3477.4,3476.8,0.34514456]
[1718157880532,3.77384549,3477.5,3476.8,0.34514456]
[1718157880533,2.87567,3477.5,3476.9,0.55]
[1718157880909,2.87567,3477.5,3477.0,0.04504497]
[1718157881413,3.4746582,3477.5,3477.0,0.04504497]
[1718157884302,3.4746582,3477.5,3477.0,0.42094027]
[1718157884734,2.87589,3477.2,3477.0,0.04504497]
[1718157885107,2.87589,3477.2,3476.8,0.287628]
[1718157885309,2.87589,3477.2,3477.1,0.04488631]
[1718157885504,2.87589,3477.2,3476.5,9.6365]
[1718157885700,3.4748782,3477.2,3476.5,9.6365]
[1718157885904,3.4748782,3477.2,3476.6,0.04499625]
[1718157887338,2.87589,3477.2,3476.6,0.04499625]
[1718157887638,2.87589,3477.2,3476.6,1.30079988]
[1718157888248,0.5989882,3477.3,3476.7,0.0575199]
[1718157888532,0.5989882,3477.4,3476.8,0.59508297]
[1718157888743,0.5989882,3477.5,3476.8,0.65260126]
[1718157888945,0.5989882,3477.4,3476.8,0.65260126]
[1718157889121,0.5989882,3477.4,3476.9,0.47847649]
[1718157889447,0.5989882,3477.5,3476.9,0.47847649]
[1718157889622,0.5989882,3477.5,3477.0,0.04502117]
[1718157889822,0.5989882,3477.4,3477.0,0.04502117]
[1718157891059,2.87561,3477.6,3477.0,0.04502117]
[1718157891215,3.4745982,3477.6,3477.0,0.04502117]
[1718157891417,2.87561,3477.6,3477.1,2.2805]
[1718157891635,2.87561,3477.6,3477.2,0.6287624]
[1718157891837,2.87561,3477.6,3477.2,0.67356807]
[1718157892256,0.5989882,3477.8,3477.2,0.67356807]
[1718157892438,0.5989882,3477.9,3477.2,0.67356807]
[1718157893247,3.4742482,3478.0,3477.2,3.6069317]
[1718157893457,2.87526,3478.0,3477.3,0.7012536]
[1718157893642,2.87526,3478.0,3477.3,1.2512536]
[1718157893818,2.87526,3478.0,3477.4,0.04466307]
[1718157894723,0.5989882,3478.2,3477.4,0.04466307]
[1718157895428,2.6209882,3478.3,3477.4,0.04466307]
[1718157895633,2.6209882,3478.3,3477.5,0.41142562]
[1718157896031,2.6209882,3478.3,3477.6,0.04270153]
[1718157896450,0.5989882,3478.2,3477.6,0.04270153]
[1718157896963,0.5989882,3478.1,3477.7,0.04267956]
[1718157897136,0.5989882,3478.1,3477.3,1.19374317]
[1718157897334,2.87531,3477.9,3477.8,0.04265758]
[1718157897527,5.30901,3477.9,3476.9,7.252]
[1718157897729,5.30901,3477.9,3477.0,0.55]
[1718157897928,5.9079982,3477.9,3477.0,0.59283339]
[1718157898128,5.9079982,3477.9,3477.1,1.30812734]
[1718157898447,3.4742982,3477.9,3477.1,1.35093875]
[1718157898626,2.87531,3477.9,3477.1,1.35093875]
[1718157898821,2.87531,3477.9,3477.2,0.05751193]
[1718157899329,0.5989882,3478.1,3477.4,2.2869]
[1718157899636,2.6209882,3478.2,3477.4,2.9382461]
[1718157899842,2.6209882,3478.2,3477.5,0.04250967]
[1718157900365,3.4741382,3478.1,3477.5,0.04250967]
[1718157900660,3.4741382,3478.1,3477.2,0.55]
[1718157900871,3.4741382,3478.1,3477.6,0.04248769]
[1718157901177,2.87515,3478.1,3477.7,0.04246572]
[1718157901376,2.87515,3478.1,3477.4,0.55]
[1718157901533,2.87515,3478.1,3477.8,0.04244375]
[1718157901856,2.87515,3478.1,3477.5,2.4054]
[1718157902059,2.87515,3478.1,3477.9,0.04242178]
[1718157902256,2.87515,3478.1,3477.6,0.29554]
[1718157902475,2.87515,3478.1,3478.0,0.04239981]
[1718157902645,2.87515,3478.1,3477.5,2.4054]
[1718157902850,2.87515,3478.1,3478.0,0.04239981]
[1718157903056,2.87515,3478.1,3477.5,2.4054]
[1718157903382,2.87515,3478.1,3477.6,0.29554]
[1718157903638,2.87515,3478.1,3477.6,0.04248769]
[1718157903997,2.87515,3478.1,3477.3,0.55]
[1718157904198,2.87515,3478.1,3477.7,0.04246572]
[1718157904529,2.87515,3478.1,3477.8,0.04244375]
[1718157904845,2.87515,3478.1,3477.4,0.05750768]
[1718157905029,2.87515,3478.1,3477.9,0.04242178]
[1718157905238,2.87515,3478.1,3477.5,0.28908077]
[1718157905617,2.6209882,3478.3,3477.6,0.04248769]
[1718157908853,0.5989882,3478.3,3477.6,0.04248769]
[1718157909015,0.844,3477.8,3477.6,0.04248769]
[1718157909398,0.844,3477.8,3477.6,0.41821354]
[1718157910451,0.5989882,3478.3,3477.6,0.41821354]
[1718157910599,0.844,3477.8,3477.6,0.41821354]
[1718157911599,0.5989882,3478.3,3477.6,0.41821354]
[1718157911799,0.844,3477.7,3477.6,0.04248769]
[1718157914038,0.844,3477.9,3477.6,0.04248769]
[1718157915248,0.5989882,3478.3,3477.6,0.04248769]
[1718157915551,0.5989882,3478.5,3478.0,2.8752]
[1718157915713,0.89817549,3478.6,3478.0,2.8752]
[1718157915714,0.5989882,3478.6,3478.1,0.37192]
[1718157916067,5.36603273,3478.9,3478.2,0.0421234]
[1718157916068,3.71855,3478.9,3478.2,0.0421234]
[1718157916551,0.844,3478.7,3478.2,0.0421234]
[1718157916858,0.844,3478.7,3478.2,0.37104774]